[Event "URU-ch Final 2018"]
[Site "Montevideo"]
[Date "2018.04.11"]
[Round "5"]
[White "Carbone, Diego"]
[Black "Lopez Azambuja, Nicolas"]
[Result "1/2-1/2"]
[ECO "E19"]
[WhiteElo "2219"]
[BlackElo "2314"]
[Annotator "NA"]
[PlyCount "45"]
[EventDate "2018.??.??"]
[EventType "tourn"]
[EventCountry "URU"]
[SourceTitle "playchess.com"]
[Source "ChessBase"]
[SourceQuality "1"]
[TimeControl "40/5400+30:1800+30"]

1. d4 {[%emt 0:04:30]} Nf6 {[%emt 0:03:52]} 2. Nf3 {[%emt 0:00:22]} e6 {[%emt 0:00:52]} 3. g3 {[%emt 0:00:41]} b6 {[%emt 0:01:26]} 4. Bg2 {[%emt 0:00:50]} Bb7 {[%emt 0:00:27]} 5. O-O {[%emt 0:01:45]} Be7 {[%emt 0:00:49]} 6. c4 {[%emt 0:01:00]} O-O {[%emt 0:00:20]} 7. Nc3 {[%emt 0:01:31]} Ne4 {[%emt 0:04:02]} 8. Qc2 {[%emt 0:00:36]} Nxc3 {[%emt 0:01:18]} 9. Qxc3 {[%emt 0:00:07]} Bf6 {[%emt 0:04:39]} 10. b3 {[%emt 0:14:50]} c5 {[%emt 0:05:02]} 11. Bb2 {[%emt 0:11:34]} cxd4 {[%emt 0:14:55]} 12. Nxd4 {[%emt 0:02:50]} Bxg2 {[%emt 0:01:09]} 13. Kxg2 {[%emt 0:00:28]} Nc6 {[%emt 0:00:50]} 14. Qd2 {[%emt 0:01:20]} Bxd4 {[%emt 0:15:10]} 15. Bxd4 {[%emt 0:02:23]} d5 {[%emt 0:01:28]} 16. Bb2 {[%emt 0:15:00]} dxc4 {[%emt 0:00:56]} 17. Qc3 {[%emt 0:01:27]} Qd5+ {[%emt 0:01:02]} 18. f3 {[%emt 0:07:06]} e5 {[%emt 0:01:27]} 19. Rfd1 {[%emt 0:04:55]} Qe6 {[%emt 0:01:35]} 20. Rac1 {[%emt 0:08:03]} b5 {[%emt 0:08:30]} 21. bxc4 {[%emt 0:06:36]} b4 {[%emt 0:03:40]} 22. Qc2 {[%emt 0:01:24]} Rac8 {[%emt 0:05:25]} 23. Rd5 {[%emt 0:02:11]} 1/2-1/2

[Event "URU-ch Final 2018"]
[Site "Montevideo"]
[Date "2018.04.14"]
[Round "8"]
[White "Lopez Azambuja, Nicolas"]
[Black "Caitano, Martin Joel"]
[Result "1-0"]
[ECO "E92"]
[WhiteElo "2314"]
[BlackElo "2115"]
[Annotator "NA"]
[PlyCount "67"]
[EventDate "2018.??.??"]
[EventType "tourn"]
[EventCountry "URU"]
[SourceTitle "playchess.com"]
[Source "ChessBase"]
[SourceQuality "1"]
[TimeControl "40/5400+30:1800+30"]

1. d4 {[%emt 0:00:00]} Nf6 {[%emt 0:00:04]} 2. c4 {[%emt 0:00:00]} g6 {[%emt 0:00:05]} 3. Nc3 {[%emt 0:00:00]} Bg7 {[%emt 0:00:05]} 4. e4 {[%emt 0:00:00]} d6 {[%emt 0:00:04]} 5. Nf3 {[%emt 0:00:06]} O-O {[%emt 0:00:06]} 6. Be2 {[%emt 0:00:08]} e5 {[%emt 0:00:11]} 7. Be3 {[%emt 0:00:23]} exd4 {[%emt 0:00:57]} 8. Nxd4 {[%emt 0:00:26]} Re8 {[%emt 0:00:21]} 9. f3 {[%emt 0:00:08]} c6 {[%emt 0:02:21]} 10. Bf2 {[%emt 0:00:21]} Nbd7 {[%emt 0:06:41]} 11. Qd2 {[%emt 0:04:09]} d5 {[%emt 0:34:49]} 12. exd5 {[%emt 0:13:53]} cxd5 {[%emt 0:01:18]} 13. O-O {[%emt 0:04:15]} dxc4 {[%emt 0:13:15]} 14. Ndb5 {[%emt 0:06:33]} Qa5 {[%emt 0:10:58]} (14... Nb6 $11 {keeps the balance.} 15. Rad1 Qxd2 16. Rxd2 Be6) 15. Nd6 {[%emt 0:10:40]} Rd8 {[%emt 0:01:27]} 16. Nxc4 {[%emt 0:09:46]} Ne5 {[%emt 0:02:25]} (16... Nf8 $1 $14) 17. Nxa5 $16 {[%emt 0:01:07]} Rxd2 {[%emt 0:00:13]} 18. Rfd1 {[%emt 0:02:17]} Rxd1+ {[%emt 0:06:37]} 19. Rxd1 {[%emt 0:00:14]} b6 {[%emt 0:02:13]} 20. Rd8+ {[%emt 0:06:37]} Bf8 {[%emt 0:00:09]} 21. f4 {[%emt 0:04:32]} bxa5 {[%emt 0:08:41]} 22. fxe5 {[%emt 0:00:16]} Nd7 {[%emt 0:01:51]} 23. Bf3 {[%emt 0:01:44]} Rb8 {[%emt 0:02:17]} 24. Bxa7 {[%emt 0:01:23]} Rxb2 {[%emt 0:01:16]} 25. Rxc8 {[%emt 0:00:13]} Nxe5 {[%emt 0:01:16]} 26. Bc5 {[%emt 0:06:09]} Nd7 {[%emt 0:00:37]} 27. Bd4 {[%emt 0:00:37]} Rd2 {[%emt 0:00:56]} 28. Be3 {[%emt 0:02:47]} Rd3 {[%emt 0:00:13]} 29. Kf2 {[%emt 0:01:02]} Kg7 {[%emt 0:01:09]} 30. Be2 {[%emt 0:03:26]} Rd6 {[%emt 0:00:37]} 31. Ne4 {[%emt 0:00:37]} Rd5 {[%emt 0:00:45]} 32. g4 {[%emt 0:02:07]} Be7 {[%emt 0:00:48]} 33. Bc4 {[%emt 0:02:55]} Bh4+ {[%emt 0:00:18]} 34. Ke2 1-0

[Event "URU-ch Final 2018"]
[Site "Montevideo"]
[Date "2018.04.14"]
[Round "8"]
[White "Rodi, Luis Ernesto"]
[Black "Kimelman, Gabriel"]
[Result "1-0"]
[ECO "C05"]
[WhiteElo "2314"]
[BlackElo "2255"]
[Annotator "ChessBase"]
[PlyCount "119"]
[EventDate "2018.??.??"]
[EventType "tourn"]
[EventCountry "URU"]
[SourceTitle "playchess.com"]
[Source "ChessBase"]
[SourceQuality "1"]
[TimeControl "40/5400+30:1800+30"]

1. e4 {[%emt 0:00:00]} e6 {[%emt 0:00:05]} 2. d4 {[%emt 0:00:03]} d5 {[%emt 0:00:02]} 3. Nd2 {[%emt 0:00:08]} Nf6 {[%emt 0:00:02]} 4. e5 {[%emt 0:00:07]} Nfd7 {[%emt 0:00:03]} 5. c3 {[%emt 0:00:08]} c5 {[%emt 0:00:02]} 6. f4 {[%emt 0:00:06]} Nc6 {[%emt 0:00:02]} 7. Ndf3 {[%emt 0:00:08]} Qb6 {[%emt 0:00:04]} 8. g3 {[%emt 0:00:11]} cxd4 {[%emt 0:00:04]} 9. cxd4 {[%emt 0:00:06]} Be7 {[%emt 0:00:14]} 10. Bh3 {[%emt 0:00:13]} O-O {[%emt 0:00:06]} 11. Ne2 {[%emt 0:00:05]} f6 {[%emt 0:00:10]} 12. Bxe6+ {[%emt 0:00:13]} Kh8 {[%emt 0:00:03]} 13. exf6 {[%emt 0:00:08]} Nxf6 {[%emt 0:00:08]} 14. Bxc8 {[%emt 0:00:05]} Bb4+ {[%emt 0:00:06]} 15. Kf1 {[%emt 0:00:07]} Raxc8 {[%emt 0:00:03]} 16. Kg2 {[%emt 0:00:10]} Ne4 {[%emt 0:03:57]} 17. Qd3 {[%emt 0:00:48]} Bd6 {[%emt 0:04:41]} 18. a3 {[%emt 0:16:55]} Na5 {[%emt 0:03:35]} 19. Rb1 {[%emt 0:06:17]} Qb3 {[%emt 0:14:57]} 20. Nc3 {[%emt 0:12:36]} Bxa3 {[%emt 0:21:03]} 21. Ne5 {[%emt 0:12:03]} Bd6 {[%emt 0:30:11]} 22. Nxe4 {[%emt 0:09:31]} Qxd3 {[%emt 0:00:15]} 23. Nxd3 {[%emt 0:00:03]} dxe4 {[%emt 0:00:07]} 24. Ne5 {[%emt 0:00:06]} Rc2+ {[%emt 0:00:08]} 25. Kh3 {[%emt 0:00:05]} Nb3 {[%emt 0:06:15]} 26. Be3 {[%emt 0:02:08]} Kg8 {[%emt 0:00:56]} 27. Kg4 {[%emt 0:05:18]} g6 {[%emt 0:10:17]} 28. h4 {[%emt 0:00:15]} h5+ {[%emt 0:00:29]} 29. Kh3 {[%emt 0:00:05]} Kh7 {[%emt 0:01:55]} 30. Rhg1 {[%emt 0:01:04]} Rfc8 {[%emt 0:00:53]} 31. g4 {[%emt 0:04:25]} Re2 {[%emt 0:00:31]} 32. Rbe1 {[%emt 0:01:06]} hxg4+ {[%emt 0:02:01]} 33. Kxg4 {[%emt 0:00:07]} Rxb2 {[%emt 0:00:48]} 34. f5 {[%emt 0:00:50]} gxf5+ {[%emt 0:01:00]} 35. Kxf5 {[%emt 0:00:02]} Bxe5 {[%emt 0:01:57]} 36. dxe5 {[%emt 0:00:10]} Rh2 {[%emt 0:00:44]} 37. Rg4 {[%emt 0:00:56]} Na5 {[%emt 0:00:32]} 38. Reg1 {[%emt 0:00:38]} Rf8+ {[%emt 0:00:32]} 39. Kxe4 {[%emt 0:00:15]} Nc6 {[%emt 0:00:15]} 40. e6 {[%emt 0:01:04]} Re8 {[%emt 0:30:29]} 41. Rg7+ {[%emt 0:33:13]} Kh8 {[%emt 0:00:01]} 42. Kf5 {[%emt 0:09:27]} Rxh4 {[%emt 0:00:00]} 43. Rxb7 {[%emt 0:00:00]} Rh7 {[%emt 0:00:00]} 44. Rxh7+ {[%emt 0:00:00]} Kxh7 {[%emt 0:00:00]} 45. Bc5 {[%emt 0:00:00]} a5 {[%emt 0:00:22]} 46. Kf6 {[%emt 0:00:00]} Rc8 {[%emt 0:00:26]} 47. Bd6 {[%emt 0:00:00]} Rd8 {[%emt 0:00:49]} 48. Rg7+ {[%emt 0:00:00]} Kh8 {[%emt 0:01:01]} 49. Rd7 {[%emt 0:00:00]} Rxd7 {[%emt 0:01:18]} 50. exd7 {[%emt 0:00:00]} Kg8 {[%emt 0:00:01]} 51. Be7 {[%emt 0:00:00]} a4 {[%emt 0:01:07]} 52. Ke6 {[%emt 0:00:00]} a3 {[%emt 0:00:45]} 53. Bxa3 {[%emt 0:00:00]} Nd8+ {[%emt 0:00:10]} 54. Kf6 {[%emt 0:00:00]} Kh7 {[%emt 0:01:15]} 55. Be7 {[%emt 0:00:00]} Nb7 {[%emt 0:00:08]} 56. Ke6 {[%emt 0:00:00]} Kg6 {[%emt 0:00:07]} 57. Kd5 {[%emt 0:00:00]} Kf7 {[%emt 0:00:06]} 58. Bh4 {[%emt 0:00:00]} Kg6 {[%emt 0:01:16]} 59. Kc6 {[%emt 0:00:00]} Na5+ {[%emt 0:00:38]} 60. Kc7 {[%emt 0:00:00]} 1-0

[Event "URU-ch Final 2018"]
[Site "Montevideo"]
[Date "2018.04.14"]
[Round "8"]
[White "Larrea, Manuel"]
[Black "Dominguez, Facundo"]
[Result "1-0"]
[ECO "C18"]
[WhiteElo "2289"]
[BlackElo "2143"]
[Annotator "NA"]
[PlyCount "67"]
[EventDate "2018.??.??"]
[EventType "tourn"]
[EventCountry "URU"]
[SourceTitle "playchess.com"]
[Source "ChessBase"]
[SourceQuality "1"]
[TimeControl "40/5400+30:1800+30"]

1. e4 {[%emt 0:00:00]} e6 {[%emt 0:14:53]} 2. d4 {[%emt 0:00:00]} d5 {[%emt 0:00:05]} 3. Nc3 {[%emt 0:00:00]} Bb4 {[%emt 0:00:24]} 4. e5 {[%emt 0:00:00]} c5 {[%emt 0:00:09]} 5. a3 {[%emt 0:00:00]} Bxc3+ {[%emt 0:00:05]} 6. bxc3 {[%emt 0:00:00]} Qa5 {[%emt 0:00:51]} 7. Bd2 {[%emt 0:00:06]} Qa4 {[%emt 0:00:05]} 8. Qg4 {[%emt 0:00:09]} Kf8 {[%emt 0:00:05]} 9. Qd1 {[%emt 0:00:04] C18: French: 3 Nc3 Bb4: Main line: 7 h4 and 7 Qg4} b6 {[%emt 0:00:06]} 10. Qb1 {[%emt 0:05:27]} (10. dxc5 bxc5 11. c4 Ba6 12. cxd5 Bxf1 13. Kxf1 exd5 14. Nf3 Nd7 15. h4 h5 16. Rb1 Ne7 {½-½ (47) Najer,E (2699)-Harikrishna,P (2733) Antalya 2017}) 10... Ba6 {[%emt 0:00:32]} 11. Qb3 {[%emt 0:00:50]} Qxb3 {[%emt 0:44:54]} 12. cxb3 {[%emt 0:00:17]} Bxf1 {[%emt 0:00:03]} 13. Kxf1 {[%emt 0:00:08]} c4 $146 {[%emt 0:00:09]} ({Find the theoretical novelty and annotate with similar games:} 13... Nc6 14. Nf3 Na5 15. Rb1 c4 16. b4 Nb3 {½-½ (30) Petermann,M (1986)-Schmitt,P (1984) Schoeneck 2009}) 14. b4 {[%emt 0:03:01]} a5 {[%emt 0:00:23]} 15. a4 {[%emt 0:10:10]} axb4 {[%emt 0:02:52]} 16. cxb4 {[%emt 0:00:06]} Nc6 {[%emt 0:01:02]} 17. Ne2 {[%emt 0:03:32]} Nge7 {[%emt 0:01:13]} 18. Bc3 {[%emt 0:06:51]} Ke8 {[%emt 0:03:28]} 19. g3 {[%emt 0:04:25]} Kd7 {[%emt 0:00:58]} 20. Kg2 {[%emt 0:02:48]} Ra7 {[%emt 0:02:45]} 21. Ra2 {[%emt 0:03:26]} h5 $15 {[%emt 0:01:20]} 22. Rha1 {[%emt 0:07:48]} f6 {[%emt 0:03:59]} 23. f4 {[%emt 0:15:38]} Nf5 {[%emt 0:01:19]} 24. h3 {[%emt 0:01:35]} fxe5 {[%emt 0:09:32]} 25. dxe5 {[%emt 0:01:08]} d4 {[%emt 0:08:49]} 26. Nxd4 {[%emt 0:06:46]} Ne3+ {[%emt 0:02:44]} 27. Kf3 {[%emt 0:01:09]} Nxd4+ {[%emt 0:00:40]} 28. Bxd4 {[%emt 0:00:13]} Nd5 {[%emt 0:00:09]} 29. Rd2 {[%emt 0:06:12]} Rha8 {[%emt 0:00:43]} 30. a5 {[%emt 0:01:44]} Ra6 {[%emt 0:00:05]} 31. Rc1 {[%emt 0:01:03]} Nxb4 {[%emt 0:01:03]} 32. Bxb6+ {[%emt 0:02:46]} Nd5 {[%emt 0:00:13]} 33. Rxc4 {[%emt 0:01:18]} Rc8 {[%emt 0:00:46]} 34. Rxd5+ {[%emt 0:00:51]} 1-0